bitfinex/quotes_SOLUSD_20250904
["timestamp","ask_amount","ask_price","bid_price","bid_amount"]
[1756964683597,31.51523076,206.39,206.36,3.24995588]
[1756964683796,30.84523076,206.39,206.35,3.24995588]
[1756964684013,0.67,206.38,206.35,3.24995588]
[1756964685110,5.51558262,206.38,206.35,3.24995588]
[1756964685992,26.0,206.39,206.35,3.93995588]
[1756964686209,30.8452607,206.39,206.35,3.93995588]
[1756964686409,0.67,206.42,206.38,3.24995588]
[1756964687191,5.51452532,206.42,206.38,3.93995588]
[1756964687905,5.51452532,206.42,206.39,3.24995588]
[1756964688410,5.51452532,206.42,206.38,3.24995588]
[1756964688616,0.67,206.41,206.36,3.24995588]
[1756964688816,0.67,206.4,206.36,3.24995588]
[1756964688999,0.67,206.4,206.37,3.24995588]
[1756964689202,5.51452532,206.42,206.38,3.24995588]
[1756964689591,5.51452532,206.42,206.39,3.24995588]
[1756964689792,4.84452532,206.42,206.39,3.24995588]
[1756964689996,0.67,206.41,206.39,3.24995588]
[1756964690218,0.67,206.41,206.38,3.24995588]
[1756964691201,0.06,206.45,206.4,3.24995588]
[1756964691405,3.22098242,206.44,206.41,3.24995588]
[1756964691715,3.22098242,206.43,206.41,3.24995588]
[1756964691917,3.22098242,206.42,206.41,3.24995588]
[1756964692122,3.22098242,206.42,206.4,3.24995588]
[1756964692294,5.51439215,206.43,206.4,3.24995588]
[1756964692495,3.89218721,206.42,206.4,3.24995588]
[1756964692699,0.67,206.42,206.4,3.24995588]
[1756964693003,0.67,206.42,206.38,14.28559401]
[1756964693204,3.22239526,206.41,206.39,3.24995588]
[1756964693397,0.67,206.42,206.39,3.24995588]
[1756964693598,3.22254013,206.41,206.39,3.24995588]
[1756964693805,0.67,206.42,206.39,3.24995588]
[1756964694005,3.22263072,206.41,206.39,3.24995588]
[1756964694307,0.67,206.42,206.39,3.24995588]
[1756964694504,3.2232532,206.41,206.4,3.24995588]
[1756964694695,4.84439215,206.43,206.37,18.44118871]
[1756964695010,3.22331252,206.42,206.4,3.24995588]
[1756964695219,5.51439215,206.43,206.4,3.24995588]
[1756964695390,3.22368814,206.42,206.4,3.24995588]
[1756964695595,0.06,206.45,206.41,3.93995588]
[1756964695793,0.06,206.45,206.43,3.24995588]
[1756964696209,5.57385646,206.45,206.41,3.24995588]
[1756964697198,5.57385646,206.45,206.4,14.28559401]
[1756964697417,5.57385646,206.45,206.42,3.24995588]
[1756964697999,5.57385646,206.45,206.41,3.24995588]
[1756964698202,0.67,206.44,206.38,13.59559401]
[1756964698519,0.67,206.44,206.4,3.24995588]
[1756964698711,5.51418115,206.44,206.38,14.28559401]
[1756964699016,5.51418115,206.44,206.4,3.24995588]
[1756964699821,5.51418115,206.44,206.41,3.24995588]
[1756964700027,4.90378784,206.45,206.41,3.24995588]
[1756964700232,0.67,206.44,206.4,3.24995588]
[1756964700750,0.67,206.44,206.38,14.28559401]
[1756964701029,0.67,206.43,206.4,13.59559401]
[1756964701224,0.67,206.42,206.4,13.59559401]
[1756964701726,0.06,206.45,206.42,13.59559401]
[1756964701927,0.06,206.45,206.44,16.84554989]
[1756964702123,0.06,206.45,206.44,13.59559401]
[1756964702320,0.06,206.45,206.44,16.84554989]
[1756964702816,0.06,206.45,206.44,17.53554989]
[1756964703010,0.06,206.45,206.43,3.24995588]
[1756964703205,0.67,206.44,206.41,3.24995588]
[1756964703435,0.67,206.44,206.38,16.84554989]
[1756964703436,0.67,206.43,206.38,16.84554989]
[1756964703635,0.67,206.42,206.38,16.84554989]
[1756964703812,0.67,206.42,206.38,3.24995588]
[1756964704250,5.51472651,206.41,206.35,13.90991715]
[1756964704527,0.67,206.4,206.36,3.24995588]
[1756964704833,4.84442653,206.43,206.39,3.24995588]
[1756964705034,5.51442653,206.43,206.39,3.24995588]
[1756964705231,0.67,206.42,206.39,3.24995588]
[1756964705414,4.84442653,206.43,206.38,16.84554989]
[1756964705813,0.67,206.42,206.38,16.84554989]
[1756964706237,0.67,206.42,206.38,13.59559401]
[1756964706534,0.67,206.42,206.38,3.24995588]
[1756964706733,0.67,206.41,206.38,3.24995588]
[1756964706933,0.67,206.4,206.38,13.59559401]
[1756964707230,0.67,206.39,206.35,3.27995588]
[1756964708054,0.67,206.42,206.38,3.24995588]
[1756964708330,38.84,206.45,206.39,0.69]
[1756964708331,0.06,206.45,206.39,0.69]
[1756964708535,0.06,206.45,206.4,13.59559401]
[1756964708717,3.91995588,206.44,206.39,13.59559401]
[1756964708912,0.67,206.43,206.39,16.84554989]
[1756964709128,0.67,206.42,206.39,16.84554989]
[1756964709328,3.24995588,206.44,206.36,39.48]
[1756964709517,0.67,206.41,206.37,3.24995588]
[1756964709713,26.06,206.45,206.37,3.24995588]
[1756964709714,3.24995588,206.42,206.37,13.59559401]
[1756964709941,0.06,206.45,206.38,3.24995588]
[1756964710152,4.84403891,206.44,206.39,3.24995588]
[1756964710438,4.84403891,206.44,206.39,13.59559401]
[1756964710818,3.24995588,206.43,206.37,13.59559401]
[1756964711018,0.67,206.41,206.36,42.03995588]
[1756964711250,0.67,206.4,206.36,0.03]
[1756964711815,0.67,206.39,206.36,0.03]
[1756964712034,5.51513896,206.4,206.36,0.03]
[1756964712450,5.51513896,206.4,206.36,5.10781601]
[1756964714237,5.51513896,206.4,206.36,0.03]
[1756964714427,5.51513896,206.4,206.36,5.10781601]
[1756964714738,0.67,206.39,206.36,0.03]
[1756964715315,5.07781601,206.37,206.36,0.03]
[1756964715725,5.74781601,206.37,206.36,0.03]
[1756964716120,0.67,206.37,206.36,0.03]
[1756964716332,0.67,206.39,206.36,5.10781601]
[1756964716549,0.67,206.4,206.36,0.03]
[1756964716847,0.67,206.39,206.36,0.03]
[1756964717638,0.67,206.38,206.36,0.03]
[1756964718140,0.67,206.37,206.36,0.03]
[1756964718330,5.74781601,206.37,206.36,0.03]
[1756964719242,10.59348156,206.37,206.36,0.03]
[1756964721246,4.84538812,206.39,206.36,0.03]
[1756964721545,5.51538812,206.39,206.36,0.03]
[1756964721735,0.67,206.38,206.36,0.03]
[1756964721940,5.74781601,206.38,206.36,0.03]
[1756964722129,5.07781601,206.37,206.36,0.03]
[1756964722440,6.05599878,206.38,206.36,0.03]
[1756964722441,5.38599878,206.38,206.36,0.03]
[1756964722623,4.84538812,206.39,206.36,0.03]
[1756964723042,4.84538812,206.39,206.36,5.10781601]
[1756964723270,4.84496124,206.4,206.37,5.07781601]
[1756964723819,4.84496124,206.4,206.36,0.03]
[1756964724050,5.51496124,206.4,206.36,0.03]
[1756964724228,0.67,206.39,206.36,0.03]
[1756964724429,4.84496124,206.4,206.36,0.03]
[1756964724643,5.51496124,206.4,206.36,5.10781601]
[1756964725146,0.67,206.39,206.36,0.03]
[1756964725337,4.84543075,206.38,206.36,0.03]
[1756964725529,5.51543075,206.38,206.36,0.03]
[1756964725844,0.67,206.37,206.36,0.03]
[1756964726053,5.74781601,206.37,206.36,0.03]
[1756964726222,5.74781601,206.37,206.35,0.03]
[1756964726223,42.62082696,206.37,206.35,0.03]
[1756964726422,16.01804216,206.36,206.35,0.03]
[1756964726638,10.94022615,206.36,206.35,0.03]
[1756964726830,4.84543075,206.38,206.35,0.03]
[1756964727034,9.92324676,206.38,206.35,0.03]
[1756964727242,10.59371637,206.36,206.35,0.03]
[1756964727830,5.51590036,206.36,206.35,0.03]
[1756964728044,4.84590036,206.36,206.35,0.03]
[1756964728564,9.92371637,206.36,206.35,0.03]
[1756964728927,4.84571136,206.37,206.35,0.03]
[1756964729228,12.554862,206.38,206.35,0.03]
[1756964729545,5.74781601,206.37,206.35,0.03]
[1756964729960,12.554862,206.38,206.35,0.03]
[1756964730158,17.63267801,206.38,206.35,0.03]
[1756964730333,18.30267801,206.38,206.35,0.03]
[1756964730650,17.63267801,206.38,206.35,0.03]
[1756964730861,4.84546281,206.38,206.35,0.03]
[1756964731330,9.92301199,206.39,206.35,0.03]
[1756964731530,0.67,206.37,206.35,0.03]
[1756964731736,5.07781601,206.38,206.35,0.03]
[1756964731930,5.74781601,206.38,206.35,0.03]
[1756964732130,0.67,206.37,206.35,0.03]
[1756964732332,4.84590036,206.36,206.35,0.03]
[1756964732752,4.84566181,206.38,206.35,0.03]
[1756964733139,5.51566181,206.38,206.35,0.03]
[1756964733458,4.84566181,206.38,206.35,0.03]
[1756964734337,4.84519598,206.39,206.35,0.03]
[1756964734730,5.51519598,206.39,206.35,0.03]
[1756964735256,5.51519598,206.39,206.35,5.10781601]
[1756964735568,12.55432161,206.41,206.36,14.28559401]
[1756964735856,4.84452647,206.42,206.38,18.67341002]
[1756964736037,4.84452647,206.42,206.38,13.59559401]
[1756964736239,4.84452647,206.42,206.38,18.67341002]
[1756964736639,43.66430363,206.43,206.38,19.36341002]
[1756964736836,0.06,206.45,206.41,5.07781601]
[1756964737060,0.06,206.45,206.4,18.67341002]
[1756964737358,0.06,206.45,206.4,19.36341002]
[1756964737562,3.96058897,206.45,206.4,19.36341002]
[1756964737863,8.13452057,206.45,206.4,19.36341002]
[1756964738154,0.06,206.45,206.44,18.67341002]
[1756964739844,0.73,206.45,206.38,5.81975162]
[1756964740037,0.06,206.45,206.42,13.59559401]
[1756964740451,0.06,206.45,206.4,5.07781601]
[1756964740744,0.67,206.44,206.4,13.59559401]
[1756964741362,4.84425713,206.43,206.4,13.59559401]
[1756964741666,5.51425713,206.43,206.4,13.59559401]
[1756964742559,4.84402247,206.44,206.4,13.59559401]
[1756964742760,5.51402247,206.44,206.4,13.59559401]
[1756964743149,4.84402247,206.44,206.4,13.59559401]
[1756964743354,4.84402247,206.44,206.4,5.75781601]
[1756964743542,4.84402247,206.44,206.4,5.07781601]
[1756964744162,5.51402247,206.44,206.4,13.59559401]
[1756964744542,0.06,206.43,206.4,13.59559401]
[1756964746948,0.06,206.43,206.42,18.67341002]
[1756964747357,0.06,206.43,206.42,19.35341002]
[1756964747554,0.06,206.43,206.42,19.63773316]
[1756964748565,0.06,206.43,206.42,14.55991715]
[1756964749061,0.06,206.43,206.42,19.63773316]
[1756964750564,0.06,206.43,206.42,18.95773316]
[1756964753066,0.06,206.43,206.42,19.63773316]
[1756964753296,0.06,206.43,206.42,24.48222497]
[1756964759276,0.06,206.43,206.42,63.02222497]
[1756964760177,0.06,206.43,206.42,24.48222497]
[1756964760476,0.06,206.43,206.42,63.02222497]
[1756964761676,0.06,206.43,206.42,62.34222497]
[1756964761858,0.06,206.43,206.42,24.48222497]
[1756964762059,0.06,206.43,206.42,63.00222497]
[1756964762882,0.06,206.43,206.42,62.32222497]
[1756964763181,0.06,206.43,206.42,44.67341002]
[1756964763360,0.06,206.43,206.38,1.94085252]
[1756964763361,0.73,206.43,206.38,4.84524337]
[1756964763559,0.06,206.43,206.4,13.59559401]
[1756964763760,0.06,206.43,206.42,18.67341002]
[1756964764078,0.06,206.43,206.42,57.45773316]
[1756964764381,0.06,206.43,206.42,58.13773316]
[1756964764590,0.06,206.43,206.42,62.98222497]
[1756964765381,0.06,206.43,206.42,88.98222497]
[1756964765879,0.06,206.43,206.42,18.67341002]
[1756964766093,0.06,206.43,206.42,23.80222497]
[1756964766266,0.06,206.43,206.42,23.51790183]
[1756964766677,0.06,206.43,206.42,23.80222497]
[1756964767764,0.06,206.43,206.42,18.95773316]
[1756964768365,0.06,206.43,206.42,23.80222497]
[1756964769267,0.06,206.43,206.42,24.48222497]
[1756964769967,0.06,206.43,206.42,23.80222497]
[1756964771275,0.06,206.43,206.42,88.36222497]
[1756964771662,0.06,206.43,206.42,83.51773316]
[1756964772182,0.72,206.43,206.42,57.49773316]
[1756964773080,0.72,206.43,206.42,52.41991715]
[1756964773275,0.72,206.43,206.42,57.49773316]
[1756964773475,0.72,206.43,206.42,55.66725615]
[1756964773985,0.06,206.43,206.42,55.66725615]
[1756964774485,0.06,206.43,206.42,60.51174796]
[1756964774798,0.06,206.43,206.42,55.66725615]
[1756964775703,0.72,206.43,206.42,78.37991715]
[1756964775866,0.72,206.43,206.42,52.37991715]
[1756964776064,0.72,206.43,206.42,13.59559401]
[1756964776276,8.81159613,206.43,206.35,13.62559401]
[1756964776483,8.81159613,206.43,206.38,13.59559401]
[1756964776686,0.66,206.42,206.39,38.5]
[1756964776884,0.66,206.41,206.39,38.5]
[1756964777082,0.66,206.4,206.39,52.09559401]
[1756964778195,0.66,206.4,206.39,52.07559401]
[1756964779971,0.66,206.4,206.39,55.32293301]
[1756964780372,0.72,206.43,206.4,13.59559401]
[1756964780574,0.72,206.43,206.41,41.687339]
[1756964780775,0.66,206.42,206.41,55.28293301]
[1756964780967,0.66,206.42,206.41,52.03559401]
[1756964781589,0.06,206.43,206.42,13.59559401]
[1756964781773,0.06,206.43,206.42,16.84293301]
[1756964782270,0.06,206.43,206.42,17.12725615]
[1756964782667,0.06,206.43,206.42,13.87991715]
[1756964782870,0.06,206.43,206.42,17.12725615]
[1756964783476,0.06,206.43,206.42,13.87991715]
[1756964783679,0.72,206.43,206.42,13.59559401]
[1756964786594,0.06,206.43,206.42,17.12725615]
[1756964786791,0.06,206.43,206.42,17.80725615]
[1756964786992,0.06,206.43,206.42,17.12725615]
[1756964787292,0.06,206.43,206.42,21.97174796]
[1756964787998,0.06,206.43,206.42,17.12725615]
[1756964789007,0.06,206.43,206.42,21.97174796]
[1756964789882,0.06,206.43,206.42,17.12725615]
[1756964790702,0.06,206.43,206.42,17.80725615]
[1756964791019,0.06,206.43,206.42,17.12725615]
[1756964791385,0.06,206.43,206.42,18.72440896]
[1756964791791,0.06,206.43,206.42,22.65174796]
[1756964792317,0.06,206.43,206.42,21.97174796]
[1756964795291,0.06,206.43,206.42,18.72440896]
[1756964795508,0.06,206.43,206.42,21.97174796]
[1756964797799,0.06,206.43,206.42,101.25174796]
[1756964800182,0.06,206.45,206.44,39.59559401]
[1756964800382,0.06,206.46,206.45,13.87991715]
[1756964800683,0.06,206.46,206.45,30.79661215]
[1756964802104,0.06,206.46,206.45,22.65104399]
[1756964803110,0.06,206.46,206.45,35.64039999]
[1756964803995,0.06,206.48,206.45,37.58059352]
[1756964804184,0.06,206.48,206.47,56.11661215]
[1756964804390,0.06,206.48,206.47,134.71661215]
[1756964804590,0.06,206.48,206.47,121.72725615]
[1756964805310,0.06,206.48,206.47,122.41725615]
[1756964805492,0.06,206.48,206.47,127.26057479]
[1756964805996,0.06,206.48,206.47,140.24993079]
[1756964806893,0.06,206.48,206.47,139.55993079]
[1756964807416,0.06,206.48,206.47,126.57057479]
[1756964807821,0.06,206.48,206.47,123.32323579]
[1756964807991,0.06,206.48,206.47,126.57057479]
[1756964808709,0.06,206.48,206.47,164.71057479]
[1756964809390,0.06,206.48,206.47,178.38993079]
[1756964809898,0.06,206.48,206.47,164.71057479]
[1756964810711,0.06,206.48,206.47,177.69993079]
[1756964810895,0.06,206.48,206.47,178.38993079]
[1756964812617,1e-08,206.48,206.47,180.32993613]
[1756964813288,0.06,206.5,206.48,13.87991715]
[1756964813493,0.06,206.5,206.49,55.22725615]
[1756964813694,0.69,206.56,206.49,55.22725615]
[1756964813695,3.247339,206.62,206.52,26.0]
[1756964813897,3.247339,206.62,206.57,13.59559401]
[1756964814096,3.247339,206.62,206.58,38.1]
[1756964814712,3.247339,206.6,206.54,3.247339]
[1756964814897,3.247339,206.61,206.55,55.22725615]
[1756964815314,3.247339,206.61,206.57,13.59559401]
[1756964815614,42.93742591,206.65,206.58,38.12]
[1756964815824,3.247339,206.61,206.58,38.12]
[1756964816020,3.247339,206.59,206.58,38.12]
[1756964817018,8.08763636,206.6,206.58,38.12]
[1756964817605,3.937339,206.59,206.58,38.12]
[1756964817805,3.937339,206.59,206.57,38.1]
[1756964818126,3.937339,206.59,206.54,13.59559401]
[1756964818432,3.247339,206.58,206.56,13.59559401]
[1756964818599,3.247339,206.59,206.56,38.08]
[1756964818925,3.247339,206.58,206.56,38.08]
[1756964821230,3.247339,206.57,206.56,38.06]
[1756964822308,8.08817859,206.58,206.56,38.06]
[1756964822995,3.247339,206.59,206.56,38.06]
[1756964823216,8.08784137,206.6,206.56,38.06]
[1756964823501,4.8393341,206.64,206.57,13.59559401]
[1756964823713,3.247339,206.61,206.58,38.06]
[1756964824407,3.247339,206.63,206.59,13.59559401]
[1756964825001,3.247339,206.62,206.59,13.59559401]
[1756964826305,8.08714624,206.62,206.59,13.59559401]
[1756964826506,3.247339,206.61,206.59,13.59559401]
[1756964826827,3.247339,206.6,206.59,13.59559401]
[1756964827508,8.08761005,206.6,206.55,0.28432314]
[1756964827815,3.247339,206.58,206.57,13.59559401]
[1756964828340,3.247339,206.59,206.57,13.59559401]
[1756964828820,8.08761005,206.6,206.57,13.59559401]
[1756964830645,3.247339,206.58,206.54,13.59559401]
[1756964830805,4.84027105,206.6,206.54,51.63559401]
[1756964831011,3.247339,206.55,206.54,51.63559401]
[1756964831528,3.247339,206.57,206.54,51.63559401]
[1756964832025,8.08854736,206.56,206.54,51.63559401]
[1756964832223,3.247339,206.55,206.54,51.63559401]
[1756964832732,8.08854736,206.56,206.54,51.63559401]
[1756964833629,9.91129058,206.56,206.54,51.63559401]
[1756964833930,4.84120836,206.56,206.54,51.63559401]
[1756964834614,5.07008222,206.58,206.54,51.63559401]
[1756964834819,5.13008222,206.59,206.54,51.63559401]
[1756964835521,5.07008222,206.58,206.54,51.63559401]
[1756964836917,9.91117459,206.57,206.54,51.63559401]
[1756964837847,5.07008222,206.55,206.54,51.63559401]
[1756964838142,5.07008222,206.55,206.54,38.04]
[1756964838745,4.84109237,206.57,206.52,38.04]
[1756964839038,5.07008222,206.54,206.52,38.04]
[1756964839335,9.91191288,206.54,206.52,38.04]
[1756964839522,4.84183066,206.54,206.52,38.04]
[1756964841822,4.84183066,206.54,206.51,13.59559401]
[1756964841823,5.74008222,206.53,206.51,13.59559401]
[1756964842033,5.07008222,206.52,206.5,38.04]
[1756964842235,5.07008222,206.51,206.5,38.04]
[1756964842543,5.74008222,206.51,206.48,38.04]
[1756964842724,5.07008222,206.49,206.48,51.63559401]
[1756964842923,5.07008222,206.5,206.48,51.63559401]
[1756964843733,5.07008222,206.5,206.46,0.03]
[1756964843734,4.84308407,206.48,206.46,0.03]
[1756964844044,5.07008222,206.47,206.46,51.66559401]
[1756964844347,4.84308407,206.48,206.46,51.66559401]
[1756964844348,9.91316629,206.48,206.46,51.66559401]
[1756964844549,5.07008222,206.49,206.46,51.66559401]
[1756964844728,9.91303461,206.49,206.46,51.66559401]
[1756964845434,8.70734165,206.49,206.46,51.66559401]
[1756964845634,5.07008222,206.48,206.46,51.66559401]
[1756964845835,4.84295239,206.49,206.46,51.66559401]
[1756964846025,5.07008222,206.48,206.46,51.66559401]
[1756964846850,5.07008222,206.47,206.46,0.03]
[1756964848128,4.84295239,206.49,206.46,0.03]
[1756964848129,0.67,206.49,206.46,0.03]
[1756964848333,5.07008222,206.47,206.46,0.03]
[1756964849251,5.51301297,206.49,206.46,0.03]
[1756964849454,9.91340086,206.47,206.46,0.03]
[1756964851253,10.58340086,206.47,206.46,0.03]
[1756964852645,9.91340086,206.47,206.46,0.03]
[1756964853032,4.84331864,206.47,206.46,0.03]
[1756964854432,5.51238051,206.51,206.46,0.7]
[1756964854631,5.07008222,206.48,206.46,0.03]
[1756964856257,12.77338181,206.56,206.48,13.59559401]
[1756964856544,5.07008222,206.51,206.48,13.59559401]
[1756964856758,5.07008222,206.51,206.48,14.26559401]
[1756964857264,5.07008222,206.52,206.48,14.26559401]
[1756964857463,9.91230863,206.52,206.49,0.67]
[1756964858165,9.91230863,206.52,206.48,13.59559401]
[1756964858461,10.58230863,206.52,206.48,14.26559401]
[1756964859156,9.91230863,206.52,206.49,0.67]
[1756964859563,4.84222641,206.52,206.49,0.67]
[1756964859866,9.91230863,206.52,206.49,0.67]
[1756964860065,4.84193299,206.53,206.49,0.67]
[1756964860363,9.91201521,206.53,206.5,0.67]
[1756964860551,9.91201521,206.53,206.48,13.59559401]
[1756964860751,9.91201521,206.53,206.49,0.67]
[1756964861066,5.07008222,206.52,206.5,0.67]
[1756964861241,5.07008222,206.52,206.48,13.59559401]
[1756964861443,5.07008222,206.52,206.49,0.67]
[1756964861755,5.07008222,206.52,206.5,0.67]
[1756964862769,4.84120836,206.56,206.52,13.59559401]
[1756964862952,4.84101238,206.57,206.53,0.71]
[1756964863264,0.71,206.58,206.54,0.71]
[1756964863448,5.07008222,206.58,206.55,0.71]
[1756964863846,5.78008222,206.57,206.53,0.28432314]
[1756964864043,5.78008222,206.57,206.54,13.59559401]
[1756964864253,0.71,206.57,206.54,13.59559401]
[1756964864541,5.78008222,206.57,206.54,13.59559401]
[1756964865155,5.07008222,206.57,206.54,13.59559401]
[1756964865545,0.71,206.56,206.54,13.59559401]
[1756964866268,9.91116808,206.57,206.52,13.87991715]
[1756964866477,9.91116808,206.57,206.54,0.71]
[1756964869549,0.06,206.56,206.54,0.71]
[1756964874578,0.06,206.56,206.55,13.59559401]
[1756964876983,0.06,206.56,206.55,14.30559401]
[1756964877581,0.06,206.56,206.54,13.59559401]
[1756964877759,0.06,206.56,206.54,14.30559401]
[1756964879356,0.06,206.56,206.54,13.59559401]
[1756964879769,0.06,206.56,206.54,0.71]
[1756964880984,0.06,206.56,206.52,6.06440536]
[1756964881181,0.06,206.56,206.54,13.59559401]
[1756964881682,0.06,206.56,206.54,14.30559401]
[1756964882389,0.06,206.56,206.54,13.59559401]
[1756964882581,0.06,206.56,206.55,0.71]
[1756964884472,0.06,206.56,206.55,19.65999937]
[1756964886584,0.06,206.56,206.55,24.50144211]
[1756964886789,0.06,206.56,206.55,103.10144211]
[1756964891907,0.06,206.56,206.55,98.03135989]
[1756964892208,0.06,206.56,206.55,103.10144211]
[1756964895484,0.06,206.56,206.55,101.27298052]
[1756964896881,0.06,206.59,206.58,39.59559401]
[1756964897081,0.06,206.59,206.58,173.24890905]
[1756964897294,0.06,206.59,206.58,173.3680203]
[1756964897512,0.06,206.59,206.58,178.20875996]
[1756964903200,0.06,206.61,206.59,13.87991715]
[1756964903417,0.06,206.64,206.61,39.87991715]
[1756964903593,1e-08,206.64,206.63,17.12153778]
[1756964904107,1e-08,206.64,206.63,17.82153778]
[1756964904492,1e-08,206.64,206.63,22.66110609]
[1756964905122,0.2,206.66,206.65,26.0]
[1756964905298,0.2,206.66,206.65,81.66222977]
[1756964905616,0.06,206.68,206.66,13.87991715]
[1756964905821,0.06,206.68,206.67,55.66217357]
[1756964906024,0.06,206.68,206.67,69.32865609]
[1756964906393,0.06,206.68,206.67,56.36217357]
[1756964907000,1e-08,206.68,206.67,152.76728772]
[1756964907199,1e-08,206.69,206.68,13.87991715]
[1756964907399,1e-08,206.69,206.68,30.7880203]
[1756964908503,1e-08,206.69,206.68,31.368628]
[1756964908811,1e-08,206.69,206.68,17.70214548]
[1756964909116,1e-08,206.69,206.68,18.40214548]
[1756964909505,1e-08,206.69,206.68,23.240543]
[1756964911212,1e-08,206.69,206.68,101.840543]
[1756964911416,1e-08,206.69,206.68,114.22641782]
[1756964912121,1e-08,206.69,206.68,101.2599353]
[1756964912307,0.06,206.71,206.68,101.2599353]
[1756964912514,0.06,206.71,206.69,68.7280203]
[1756964913219,0.06,206.71,206.69,73.56618373]
[1756964915227,0.06,206.71,206.7,17.12153778]
[1756964915400,0.06,206.71,206.7,17.82153778]
[1756964916511,0.06,206.71,206.7,22.65946714]
[1756964917119,0.06,206.71,206.7,101.25946714]
[1756964919707,0.06,206.71,206.7,100.55946714]
[1756964920723,0.06,206.71,206.7,101.25946714]
[1756964923832,0.06,206.71,206.7,100.55946714]
[1756964924032,0.06,206.71,206.7,138.47946714]
[1756964929635,0.72,206.71,206.7,97.03352337]
[1756964929821,0.72,206.71,206.7,138.175144]
[1756964930619,0.72,206.71,206.7,138.45946714]
[1756964930938,0.06,206.71,206.7,138.45946714]
[1756964931130,0.72,206.71,206.7,138.45946714]
[1756964931430,0.06,206.71,206.7,138.45946714]
[1756964932534,0.06,206.71,206.7,139.11946714]
[1756964934520,0.06,206.71,206.7,137.61946714]
[1756964934723,0.06,206.71,206.7,136.95946714]
[1756964938023,0.06,206.71,206.7,137.61946714]
[1756964940635,0.06,206.71,206.7,99.05946714]
[1756964940937,0.06,206.71,206.7,136.96946714]
[1756964941127,0.06,206.71,206.7,137.62946714]
[1756964942646,0.06,206.71,206.7,136.96946714]
[1756964942940,0.72,206.71,206.7,51.50559401]
[1756964943328,0.72,206.71,206.7,54.74721464]
[1756964943738,0.72,206.71,206.7,51.50559401]
[1756964943935,0.72,206.71,206.7,51.78991715]
[1756964944143,0.72,206.71,206.7,13.90991715]
[1756964944355,0.72,206.71,206.7,13.62559401]
[1756964944649,0.72,206.71,206.7,13.90991715]
[1756964944951,0.72,206.71,206.7,51.50559401]
[1756964945247,8.79931595,206.71,206.7,13.62559401]
[1756964945428,8.79931595,206.71,206.7,51.50559401]
[1756964945848,8.79931595,206.71,206.7,13.62559401]
[1756964946144,8.79931595,206.71,206.7,0.03]
[1756964949955,21.76579847,206.71,206.7,0.03]
[1756964950255,8.79931595,206.71,206.7,0.03]
[1756964953549,10.73856886,206.71,206.7,0.03]
[1756964955436,12.56216931,206.71,206.7,0.03]
[1756964966458,50.44216931,206.71,206.7,0.03]
[1756964977147,55.50739039,206.71,206.7,0.03]
[1756964977375,61.76070651,206.71,206.7,0.03]
[1756964977581,26.0,206.68,206.65,0.03]
[1756964977873,37.86,206.67,206.65,0.03]
[1756964978171,42.92522108,206.66,206.65,0.03]
[1756964978676,43.58522108,206.66,206.65,0.03]
[1756964978866,48.42408684,206.66,206.65,0.03]
[1756964979375,62.01968085,206.66,206.65,0.03]
[1756964980669,61.35968085,206.66,206.65,0.03]
[1756964981753,23.49968085,206.66,206.65,0.03]
[1756964981950,61.35968085,206.66,206.65,0.03]
[1756964983379,47.76408684,206.66,206.65,0.71]
[1756964983756,49.70362184,206.66,206.65,0.71]
[1756964984363,49.70362184,206.66,206.65,0.03]
[1756964985051,11.84362184,206.66,206.65,0.71]
[1756964985275,9.90408684,206.66,206.65,0.71]
[1756964985581,12.09576691,206.69,206.65,0.71]
[1756964985582,5.06522108,206.67,206.65,0.71]
[1756964986483,5.06522108,206.68,206.66,13.59559401]
[1756964986690,30.8379691,206.7,206.67,0.68]